bitfinex/quotes_BTCUSD_20251114
["timestamp","ask_amount","ask_price","bid_price","bid_amount"]
[1763137087312,0.00013545,96382.0,96361.0,0.03609]
[1763137087533,0.20751165,96381.0,96380.0,0.01]
[1763137087726,0.20850977,96381.0,96380.0,0.01]
[1763137087968,0.001,96381.0,96380.0,0.01]
[1763137088156,0.001,96381.0,96368.0,0.03609]
[1763137088355,0.20851059,96381.0,96380.0,0.01]
[1763137088740,0.001,96381.0,96369.0,0.1498]
[1763137088937,0.001,96381.0,96380.0,0.01]
[1763137089280,0.20764495,96382.0,96380.0,0.01]
[1763137090263,0.00013545,96382.0,96376.0,0.03882]
[1763137090447,0.00013545,96382.0,96381.0,0.03864]
[1763137090827,0.20764307,96382.0,96381.0,0.03864]
[1763137091079,0.00013545,96382.0,96380.0,0.01]
[1763137091337,0.06561,96371.0,96370.0,0.00024307]
[1763137091467,0.27314131,96371.0,96370.0,0.00024307]
[1763137092544,0.31656005,96371.0,96370.0,0.00024307]
[1763137092717,0.63956005,96371.0,96370.0,0.00024307]
[1763137092921,0.71589188,96371.0,96370.0,0.00024307]
[1763137093503,0.71689188,96371.0,96370.0,0.00024307]
[1763137094114,0.71589188,96371.0,96370.0,0.00024307]
[1763137094391,0.72545988,96371.0,96370.0,0.00024307]
[1763137094594,0.72545988,96371.0,96326.0,0.10479654]
[1763137094595,0.82912926,96371.0,96330.0,0.02754]
[1763137094777,0.61159666,96354.0,96330.0,0.02754]
[1763137095014,0.67955666,96354.0,96326.0,0.10479654]
[1763137095336,0.67955666,96354.0,96310.0,0.0004]
[1763137096177,0.20766059,96311.0,96310.0,0.0004]
[1763137096380,0.06796,96311.0,96310.0,0.0004]
[1763137096619,0.028,96319.0,96310.0,0.0104]
[1763137096898,0.06796,96315.0,96310.0,0.0104]
[1763137097125,0.028,96323.0,96310.0,0.0104]
[1763137097336,0.068,96322.0,96320.0,0.01]
[1763137097516,0.028,96323.0,96310.0,0.00053593]
[1763137097732,0.06796,96321.0,96310.0,0.00053593]
[1763137097933,0.20764707,96318.0,96310.0,0.01053593]
[1763137098145,0.06796,96321.0,96310.0,0.01053593]
[1763137098146,0.36734175,96320.0,96310.0,0.00053593]
[1763137098485,0.028,96323.0,96310.0,0.00053593]
[1763137098697,0.0777392,96324.0,96322.0,0.03864]
[1763137098876,0.068,96331.0,96330.0,0.01]
[1763137099462,0.27561748,96331.0,96330.0,0.01]
[1763137099664,0.20761748,96331.0,96330.0,0.01]
[1763137099895,0.028,96336.0,96330.0,0.01]
[1763137100060,0.001,96331.0,96330.0,0.01]
[1763137100912,0.20761559,96332.0,96330.0,0.01]
[1763137101138,0.20761631,96332.0,96330.0,0.01]
[1763137101351,0.20761223,96334.0,96331.0,0.00105379]
[1763137101551,0.20760886,96335.0,96330.0,0.01]
[1763137101725,0.351,96349.0,96330.0,0.01]
[1763137101929,0.323,96349.0,96340.0,0.01]
[1763137102310,0.20759246,96343.0,96340.0,0.01]
[1763137102716,0.5305795,96349.0,96340.0,0.01]
[1763137102918,0.53057438,96351.0,96350.0,0.01]
[1763137103116,0.068,96357.0,96350.0,0.01]
[1763137103321,0.20757522,96351.0,96350.0,0.01]
[1763137103551,0.20758731,96345.0,96344.0,0.02754]
[1763137103764,0.028,96352.0,96344.0,0.00013593]
[1763137103967,0.20758688,96346.0,96345.0,0.02754]
[1763137104547,0.20758688,96346.0,96344.0,0.00013593]
[1763137104956,0.47202874,96345.0,96344.0,0.00013593]
[1763137105159,0.20766059,96311.0,96310.0,0.0104]
[1763137105376,0.24527059,96311.0,96310.0,0.00053532]
[1763137105573,0.31327059,96311.0,96310.0,0.00053532]
[1763137105774,0.27566059,96311.0,96310.0,0.00053532]
[1763137105987,0.31327059,96311.0,96310.0,0.00053532]
[1763137106439,0.068,96311.0,96310.0,0.00053532]
[1763137106638,0.068,96314.0,96310.0,0.01053532]
[1763137106768,0.068,96319.0,96310.0,0.01053532]
[1763137106965,0.068,96319.0,96310.0,0.00053532]
[1763137107167,0.323,96320.0,96318.0,0.00140524]
[1763137107391,0.068,96328.0,96320.0,0.01]
[1763137107602,0.20763532,96323.0,96320.0,0.01]
[1763137107821,0.068,96328.0,96320.0,0.01]
[1763137108109,0.323,96327.0,96320.0,0.01]
[1763137108336,0.323,96327.0,96310.0,0.00053532]
[1763137108337,0.24524904,96321.0,96311.0,0.00876]
[1763137108551,0.20765786,96313.0,96311.0,0.00876]
[1763137108763,0.20766059,96311.0,96310.0,0.00053532]
[1763137109325,0.24527059,96311.0,96310.0,0.00053532]
[1763137110160,0.31327059,96311.0,96310.0,0.00053532]
[1763137111729,0.63627059,96311.0,96310.0,0.00053532]
[1763137112891,0.67968933,96311.0,96310.0,0.00053532]
[1763137113254,0.67968933,96311.0,96310.0,0.00215689]
[1763137114324,0.02786,96278.0,96268.0,0.02754]
[1763137114532,0.2077404,96274.0,96268.0,0.02754]
[1763137114750,0.02799525,96278.0,96268.0,0.02754]
[1763137114751,0.00013525,96278.0,96268.0,0.02754]
[1763137114997,0.20786702,96278.0,96277.0,0.00089245]
[1763137115229,0.06813525,96278.0,96277.0,0.00089245]
[1763137115629,0.20786702,96278.0,96277.0,0.00089245]
[1763137115889,0.00013525,96278.0,96277.0,0.00089245]
[1763137118423,0.00013525,96278.0,96277.0,0.00189245]
[1763137119044,0.00013525,96278.0,96277.0,0.00089245]
[1763137119181,0.00013525,96278.0,96277.0,0.00189245]
[1763137119382,0.00013525,96278.0,96277.0,0.00289245]
[1763137119624,0.00013525,96278.0,96277.0,0.00189245]
[1763137119961,0.00013525,96278.0,96277.0,0.06989245]
[1763137120601,0.00013525,96278.0,96277.0,0.07189245]
[1763137121662,0.00013525,96278.0,96277.0,0.00289245]
[1763137121858,0.00013525,96278.0,96277.0,0.00089245]
[1763137122134,0.00013525,96278.0,96277.0,0.00189245]
[1763137122338,0.00013525,96278.0,96277.0,0.00389245]
[1763137122600,0.00013525,96278.0,96277.0,0.00289245]
[1763137123078,0.00013525,96278.0,96277.0,0.00389245]
[1763137123283,0.00013525,96278.0,96277.0,0.00189245]
[1763137123691,0.00013525,96278.0,96277.0,0.00289245]
[1763137124255,0.00013525,96278.0,96277.0,0.06993245]
[1763137124465,0.00013525,96278.0,96277.0,0.07093245]
[1763137124869,0.00013525,96278.0,96277.0,0.10723245]
[1763137125276,0.00013525,96278.0,96277.0,0.07093245]
[1763137125705,0.00013525,96278.0,96277.0,0.07089245]
[1763137129949,0.00013525,96278.0,96277.0,0.06989245]
[1763137130220,0.00013525,96278.0,96277.0,0.39489245]
[1763137130448,0.00013525,96278.0,96277.0,0.43831119]
[1763137130852,0.00013525,96278.0,96277.0,0.43731119]
[1763137131252,0.00013525,96278.0,96277.0,0.43831119]
[1763137131495,0.00013525,96278.0,96277.0,0.43631119]
[1763137131642,0.00013525,96278.0,96277.0,0.43531119]
[1763137131843,0.00013525,96278.0,96277.0,0.32589245]
[1763137132233,0.00013525,96278.0,96277.0,0.39589245]
[1763137133431,0.00013525,96278.0,96277.0,0.43931119]
[1763137133639,0.00013525,96278.0,96277.0,0.51541874]
[1763137133844,0.05957,96336.0,96277.0,0.51541874]
[1763137133845,0.02772753,96353.0,96320.0,0.2]
[1763137134051,0.05531297,96368.0,96310.0,0.2]
[1763137134052,0.00149089,96344.0,96343.0,0.05445]
[1763137134258,0.00149089,96344.0,96343.0,0.12245]
[1763137134259,0.00013608,96344.0,96343.0,0.12245]
[1763137135087,0.00013608,96344.0,96343.0,0.08615]
[1763137135919,0.00013608,96344.0,96343.0,0.45256874]
[1763137136855,0.00013608,96344.0,96343.0,0.78315874]
[1763137137071,0.00013608,96344.0,96343.0,1.18315874]
[1763137137286,0.00013608,96344.0,96343.0,0.98092374]
[1763137137487,0.00013608,96344.0,96343.0,0.85456874]
[1763137137689,0.00013608,96344.0,96343.0,0.96548874]
[1763137137932,0.00013608,96344.0,96343.0,0.89648874]
[1763137138154,0.00013608,96344.0,96343.0,0.85256874]
[1763137138364,0.00013608,96344.0,96343.0,0.42215]
[1763137138564,0.00013608,96344.0,96343.0,0.81315]
[1763137138771,0.00013608,96344.0,96343.0,1.00236874]
[1763137138988,0.00013608,96344.0,96343.0,1.00436874]
[1763137139208,0.00013608,96344.0,96343.0,0.96295]
[1763137139422,0.00013608,96344.0,96343.0,0.49295]
[1763137139641,0.00013608,96344.0,96343.0,0.02015]
[1763137139853,0.00013608,96344.0,96343.0,0.12351]
[1763137140295,0.00013608,96344.0,96343.0,0.02115]
[1763137140522,0.00013608,96344.0,96343.0,0.08715]
[1763137140726,0.00013608,96344.0,96343.0,0.08915]
[1763137140938,0.00013608,96344.0,96343.0,0.02015]
[1763137141146,0.00013608,96344.0,96343.0,0.002]
[1763137141561,0.00013608,96344.0,96342.0,0.068]
[1763137142378,0.00013608,96344.0,96343.0,0.03436]
[1763137143665,1.646e-05,96344.0,96343.0,0.13672]
[1763137144003,1.646e-05,96344.0,96343.0,0.10236]
[1763137144755,1.646e-05,96344.0,96343.0,0.25316]
[1763137144927,1.646e-05,96344.0,96343.0,0.2198]
[1763137145103,0.00226341,96344.0,96343.0,0.2188]
[1763137145344,0.00226341,96344.0,96343.0,0.5408]
[1763137145521,0.00226341,96344.0,96343.0,0.58421874]
[1763137145923,0.0002,96380.0,96370.0,0.21]
[1763137146126,0.00033598,96380.0,96379.0,0.15730654]
[1763137146347,0.00033598,96380.0,96379.0,0.22530654]
[1763137146567,0.00033598,96380.0,96379.0,0.19094654]
[1763137146707,0.00033598,96380.0,96379.0,0.12294654]
[1763137146922,0.00033598,96380.0,96379.0,0.19094654]
[1763137147122,0.00033598,96380.0,96379.0,0.12294654]
[1763137147330,0.00033598,96380.0,96379.0,0.19094654]
[1763137147869,0.20784791,96380.0,96379.0,0.19094654]
[1763137148279,0.00033598,96380.0,96379.0,0.19094654]
[1763137149419,0.00033598,96380.0,96379.0,0.12294654]
[1763137149625,0.00033598,96380.0,96379.0,0.19090654]
[1763137151656,0.00130826,96380.0,96379.0,0.27274654]
[1763137152253,0.00130826,96380.0,96379.0,0.19090654]
[1763137152638,0.00130826,96380.0,96379.0,0.12294654]
[1763137152835,0.00130826,96380.0,96373.0,0.0167]
[1763137153056,0.00081029,96374.0,96373.0,0.0167]
[1763137153257,0.20833729,96374.0,96366.0,0.0167]
[1763137153517,0.20753992,96367.0,96366.0,0.0167]
[1763137153956,0.20753992,96367.0,96360.0,0.01]
[1763137153957,0.20755069,96362.0,96360.0,0.01]
[1763137154085,0.20757438,96351.0,96350.0,0.01]
[1763137154511,0.09636,96368.0,96350.0,0.01]
[1763137154716,0.09636,96368.0,96345.0,0.06796]
[1763137154717,0.20755348,96361.0,96359.0,0.0167]
[1763137154913,0.20755348,96361.0,96360.0,0.01]
[1763137155118,0.2075529,96362.0,96360.0,0.01]
[1763137155416,0.20755165,96362.0,96360.0,0.01]
[1763137155896,0.06796,96369.0,96360.0,0.01]
[1763137156064,0.06796,96369.0,96359.0,0.0167]
[1763137156065,0.27549624,96369.0,96359.0,0.0167]
[1763137156412,0.0002,96380.0,96360.0,0.03292]
[1763137156413,0.001,96362.0,96360.0,0.03292]
[1763137156587,0.00113598,96362.0,96360.0,0.03292]
[1763137156796,0.00013598,96362.0,96360.0,0.03292]
[1763137157518,0.00013598,96362.0,96361.0,0.06796]
[1763137157657,0.00113598,96362.0,96361.0,0.06796]
[1763137157851,0.00013598,96362.0,96361.0,0.06796]
[1763137159728,1.668e-05,96362.0,96361.0,0.06796]
[1763137161955,1.668e-05,96362.0,96361.0,0.06896]
[1763137162491,1.668e-05,96362.0,96361.0,0.06796]
[1763137163027,0.01037344,96400.0,96370.0,0.21]
[1763137163228,0.01037344,96400.0,96379.0,0.13771654]
[1763137163429,0.20748616,96392.0,96379.0,0.20567654]
[1763137163744,0.20747843,96396.0,96379.0,0.17275654]
[1763137163949,0.20747983,96395.0,96379.0,0.17275654]
[1763137164149,0.01037344,96400.0,96379.0,0.17275654]
[1763137164150,0.20748212,96394.0,96379.0,0.17275654]
[1763137164311,0.20748591,96393.0,96379.0,0.17275654]
[1763137164763,0.2074895,96391.0,96379.0,0.17275654]
[1763137164924,0.20747537,96397.0,96379.0,0.17275654]
[1763137165133,0.20749053,96390.0,96379.0,0.17275654]
[1763137165359,0.20748793,96392.0,96379.0,0.17275654]
[1763137165590,0.01037344,96400.0,96379.0,0.17275654]
[1763137165591,0.20749954,96386.0,96379.0,0.35547654]
[1763137165794,0.20771193,96380.0,96379.0,0.25459654]
[1763137166141,0.20752244,96376.0,96367.0,0.03292]
[1763137166317,0.2075321,96371.0,96368.0,0.06796]
[1763137166522,0.20753365,96370.0,96368.0,0.06796]
[1763137166872,0.20753373,96372.0,96368.0,0.06796]
[1763137167076,0.0002,96380.0,96370.0,0.01]
[1763137167278,0.0002,96380.0,96368.0,0.06796]
[1763137167482,0.0002,96380.0,96370.0,0.01]
[1763137167677,0.20752933,96372.0,96370.0,0.01]
[1763137167890,0.0002,96380.0,96370.0,0.01]
[1763137167891,0.0002,96380.0,96379.0,0.03045]
[1763137168099,0.0002,96380.0,96361.0,0.323]
[1763137168100,0.0002,96380.0,96358.0,0.01424]
[1763137168324,0.20752609,96374.0,96358.0,0.01437598]
[1763137168525,0.20755715,96359.0,96358.0,0.01437598]
[1763137168726,0.06420559,96380.0,96360.0,0.01]
[1763137169074,0.20755284,96361.0,96360.0,0.01]
[1763137169283,0.20754641,96364.0,96360.0,0.01]
[1763137169482,0.20754648,96364.0,96360.0,0.01]
[1763137169693,0.19067627,96362.0,96360.0,0.01]
[1763137169883,0.20755025,96363.0,96361.0,0.03045]
[1763137170185,0.20755284,96361.0,96360.0,0.01]
[1763137170408,0.20755284,96361.0,96358.0,0.08233598]
[1763137170409,0.20755715,96359.0,96358.0,0.01437598]
[1763137171033,0.20755715,96359.0,96358.0,0.00013598]
[1763137171499,0.24298715,96359.0,96358.0,0.00013598]
[1763137171702,0.20855715,96359.0,96358.0,0.00013598]
[1763137172083,0.24398715,96359.0,96358.0,0.00013598]
[1763137172692,0.56698715,96359.0,96358.0,0.00013598]
[1763137172870,0.56598715,96359.0,96358.0,0.00013598]
[1763137173070,0.63394715,96359.0,96358.0,0.00013598]
[1763137173313,0.63594715,96359.0,96358.0,0.00013598]
[1763137173645,0.63494715,96359.0,96358.0,0.00013598]
[1763137173788,0.63394715,96359.0,96358.0,0.00013598]
[1763137174007,0.63594715,96359.0,96358.0,0.00013598]
[1763137174411,0.67936589,96359.0,96358.0,0.00013598]
[1763137174625,0.70819087,96359.0,96358.0,0.00013598]
[1763137174828,0.78631428,96359.0,96358.0,0.00013598]
[1763137175040,0.7574893,96359.0,96358.0,0.00013598]
[1763137175856,0.61140589,96359.0,96358.0,0.00013598]
[1763137176033,0.00999999,96370.0,96358.0,0.00013598]
[1763137176034,0.20752013,96377.0,96358.0,0.00013598]
[1763137176240,0.20755129,96362.0,96360.0,0.01]
[1763137176457,0.20755129,96362.0,96358.0,0.00013598]
[1763137176458,0.21155715,96359.0,96358.0,0.00013598]
[1763137176800,0.20955715,96359.0,96358.0,0.00013598]
[1763137177097,0.00240521,96359.0,96358.0,0.00013598]
[1763137177278,0.00040521,96359.0,96358.0,0.00013598]
[1763137177690,0.00140521,96359.0,96358.0,0.00013598]
[1763137178797,0.00019075,96359.0,96358.0,0.00013598]
[1763137179444,0.01057559,96380.0,96370.0,0.21]
[1763137179445,0.0002,96380.0,96370.0,0.21]
[1763137179749,0.0002,96380.0,96379.0,0.04469]
[1763137180112,0.00076712,96380.0,96379.0,0.04469]
[1763137180484,0.00076712,96380.0,96379.0,0.01424]
[1763137180685,0.20753131,96371.0,96370.0,0.001]
[1763137180944,0.19065752,96371.0,96370.0,0.001]
[1763137181145,0.20755715,96359.0,96358.0,0.00013598]
[1763137182145,0.20755705,96360.0,96358.0,0.00013598]
[1763137182746,0.02796,96359.0,96358.0,0.00013598]
[1763137183921,0.20755705,96360.0,96358.0,0.00013598]
[1763137184083,0.001,96359.0,96358.0,0.00013598]
[1763137185266,0.02796,96359.0,96358.0,0.00013598]
[1763137185944,0.06339,96359.0,96358.0,0.00013598]
[1763137186644,0.02796,96359.0,96358.0,0.00013598]
[1763137187162,0.2075556,96360.0,96358.0,0.00013598]
[1763137187540,0.002,96359.0,96358.0,0.00013598]
[1763137187905,0.001,96359.0,96358.0,0.00013598]
[1763137188848,0.00014967,96359.0,96358.0,0.47293598]
[1763137189054,0.0002,96380.0,96367.0,0.03045]
[1763137189265,0.0002,96380.0,96367.0,0.06796]
[1763137189475,0.02796,96423.0,96390.0,0.2]
[1763137189633,0.02796,96423.0,96400.0,0.2]
[1763137189839,0.02796,96423.0,96420.0,0.01]
[1763137190261,0.22387828,96433.0,96413.0,0.03001]
[1763137190472,0.09592,96444.0,96430.0,0.01]
[1763137190674,0.20740192,96432.0,96430.0,0.01]
[1763137190926,0.20741939,96423.0,96422.0,0.06796]
[1763137191124,0.20742369,96421.0,96420.0,0.07796]
[1763137191417,0.20742369,96421.0,96420.0,0.01]
[1763137193778,0.20742369,96421.0,96417.0,0.10479654]
[1763137193779,0.20743014,96418.0,96417.0,0.10479654]
[1763137194382,0.06796,96426.0,96417.0,0.10479654]
[1763137194583,0.06796,96426.0,96420.0,0.01]
[1763137194790,0.2074205,96423.0,96421.0,0.01621]
[1763137195414,0.06796,96426.0,96421.0,0.01621]
[1763137195567,0.2073766,96443.0,96421.0,0.01621]
[1763137195568,0.01036806,96450.0,96430.0,0.04001]
[1763137195731,0.09633372,96444.0,96440.0,0.01]
[1763137195952,0.20738067,96441.0,96440.0,0.01]
[1763137196167,0.20935075,96441.0,96440.0,0.01]
[1763137197439,0.21035075,96441.0,96440.0,0.01]
[1763137197730,0.24578075,96441.0,96440.0,0.01]
[1763137198027,0.24578075,96441.0,96421.0,0.01621]
[1763137198028,0.20742154,96422.0,96421.0,0.01621]
[1763137200343,0.20742154,96422.0,96420.0,0.01]
[1763137200546,0.20744527,96411.0,96410.0,0.01]
[1763137200748,0.20746242,96403.0,96400.0,0.01]
[1763137201172,0.20744951,96409.0,96399.0,0.02663]
[1763137201375,0.20742491,96421.0,96420.0,0.01]
[1763137201575,0.20742491,96421.0,96393.0,0.02663]
[1763137201576,0.06792,96421.0,96393.0,0.02663]
[1763137201790,0.2074452,96411.0,96410.0,0.01]
[1763137202432,0.10433,96411.0,96390.0,0.2]
[1763137202635,0.20746672,96401.0,96400.0,0.01]
[1763137203039,0.20750547,96383.0,96370.0,0.22663]
[1763137203242,0.1906347,96383.0,96382.0,0.19934654]
[1763137203854,0.20748307,96394.0,96382.0,0.19934654]
[1763137204062,0.20746457,96402.0,96382.0,0.19934654]
[1763137204256,0.00013595,96394.0,96383.0,0.02663]
[1763137204658,0.00043205,96384.0,96383.0,0.02663]
[1763137204905,0.00043205,96384.0,96383.0,0.34963]
[1763137205224,0.00043205,96384.0,96383.0,0.36641874]
[1763137205446,0.20739208,96436.0,96430.0,0.01]
[1763137205648,0.00045336,96436.0,96423.0,0.02663]
[1763137206125,0.00045336,96436.0,96411.0,0.00831648]
[1763137206128,0.00045336,96436.0,96419.0,0.06792]
[1763137206358,0.00045336,96436.0,96420.0,0.06792]
[1763137206596,0.00045336,96436.0,96420.0,0.26792]
[1763137206830,0.20784482,96436.0,96420.0,0.26792]
[1763137207044,0.00045336,96436.0,96420.0,0.26792]
[1763137207497,0.00045336,96436.0,96411.0,0.33131648]
[1763137207741,0.00045336,96436.0,96420.0,0.2]
[1763137207953,0.20741619,96425.0,96420.0,0.2]
[1763137208161,0.20741992,96423.0,96421.0,0.06792]
[1763137208390,0.02599,96424.0,96411.0,0.323]
[1763137208607,0.20744736,96410.0,96409.0,0.01283]
[1763137208818,0.20743041,96418.0,96412.0,0.06792]
[1763137208974,0.02599,96424.0,96409.0,0.01283]
[1763137209311,0.01036914,96440.0,96423.0,0.00074]
[1763137209458,0.20741817,96424.0,96423.0,0.00074]
[1763137209811,0.20742584,96420.0,96419.0,0.06792]
[1763137210011,0.21777636,96430.0,96419.0,0.06792]
[1763137210247,0.20741534,96425.0,96419.0,0.06792]
[1763137210631,0.20739683,96434.0,96419.0,0.06792]
[1763137210850,0.44584153,96440.0,96420.0,0.20074]
[1763137210851,0.01036914,96440.0,96420.0,0.20074]
[1763137210980,0.05509,96459.0,96435.0,0.00074]
[1763137211323,0.20739008,96437.0,96435.0,0.00074]
[1763137211520,0.06792,96453.0,96435.0,0.00074]
[1763137211869,0.20739037,96437.0,96435.0,0.00074]
[1763137212071,0.06792,96453.0,96433.0,0.06792]
[1763137212295,0.00134936,96434.0,96433.0,0.06792]
[1763137214425,0.00134936,96434.0,96433.0,0.43533874]
[1763137215035,0.00134936,96434.0,96433.0,0.43633874]
[1763137215233,0.00134936,96434.0,96433.0,0.43533874]
[1763137215614,0.00134936,96434.0,96433.0,0.43633874]
[1763137216254,0.00134936,96434.0,96433.0,0.83833874]
[1763137217393,0.00134936,96434.0,96433.0,1.51158474]
[1763137217575,0.0002,96460.0,96451.0,0.36641874]
[1763137217887,0.0002,96480.0,96471.0,0.323]
[1763137218109,0.00033597,96480.0,96479.0,0.00074]
[1763137218465,0.00033597,96480.0,96472.0,0.06792]
[1763137218691,0.00033597,96480.0,96479.0,0.10479654]
[1763137218894,0.00033597,96480.0,96479.0,0.42779654]
[1763137219898,0.00033597,96480.0,96479.0,0.49667654]
[1763137220275,0.00033597,96480.0,96479.0,0.49567654]
[1763137220470,0.00033597,96480.0,96479.0,0.49667654]
[1763137220673,0.20763281,96480.0,96479.0,0.001]
[1763137221153,0.20763281,96480.0,96479.0,0.06988]
[1763137221355,0.20763281,96480.0,96479.0,0.06888]
[1763137221765,0.00033597,96480.0,96479.0,0.06888]
[1763137222803,0.01036162,96510.0,96490.0,0.2]
[1763137223024,0.20724859,96503.0,96498.0,0.10479654]
[1763137223242,0.20725082,96502.0,96499.0,0.06788]
[1763137223659,0.00177947,96500.0,96499.0,0.06788]
[1763137225259,0.00177947,96500.0,96499.0,0.39088]
[1763137225524,0.00177947,96500.0,96499.0,0.43429874]
[1763137225934,0.00163947,96500.0,96499.0,0.43429874]
[1763137226064,0.20715812,96545.0,96499.0,0.43429874]
[1763137226065,0.36755239,96560.0,96520.0,0.2]
[1763137226292,0.20718732,96531.0,96524.0,0.10479654]
[1763137226497,0.2072002,96525.0,96524.0,0.10479654]
[1763137226695,0.20787384,96525.0,96524.0,0.17267654]
[1763137227281,0.20787384,96525.0,96524.0,0.10479654]
[1763137227479,0.20787384,96525.0,96510.0,0.56755239]
[1763137227480,0.00067364,96525.0,96510.0,0.2]
[1763137227680,0.20722811,96512.0,96511.0,0.06788]
[1763137227992,0.20722595,96514.0,96500.0,0.56755239]
[1763137227993,0.20724833,96503.0,96500.0,0.36755239]
[1763137228194,0.20725603,96499.0,96490.0,0.2]
[1763137228616,0.20725173,96501.0,96498.0,0.17267654]
[1763137228821,0.20725492,96500.0,96498.0,0.17267654]
[1763137229186,0.20725492,96500.0,96498.0,0.10493236]
[1763137229424,0.03691,96499.0,96498.0,0.00013582]
[1763137229626,0.35991,96499.0,96498.0,0.00013582]
[1763137230093,0.35991,96499.0,96450.0,0.36755239]
[1763137230094,0.20730974,96474.0,96463.0,0.06788]
[1763137231420,0.20830974,96474.0,96463.0,0.06788]
[1763137231629,0.20730974,96474.0,96463.0,0.06788]
[1763137232021,0.20730974,96474.0,96450.0,0.2]
[1763137232206,0.20730974,96474.0,96430.0,0.2]
[1763137232207,0.01036699,96460.0,96430.0,0.2]
[1763137232415,0.01036699,96460.0,96430.0,0.00013597]
[1763137232416,0.57491371,96450.0,96430.0,0.00013597]
[1763137232612,0.20738067,96441.0,96440.0,0.01]
[1763137232785,0.20738067,96441.0,96430.0,0.00013597]
[1763137232786,0.20739105,96437.0,96430.0,0.00013597]
[1763137232989,0.20739748,96434.0,96430.0,0.00013597]
[1763137233200,0.20740003,96432.0,96431.0,0.06788]
[1763137233362,0.20740003,96432.0,96430.0,0.06801597]
[1763137233564,0.20739748,96434.0,96430.0,0.06901597]
[1763137233805,0.05296,96464.0,96430.0,0.06901597]
[1763137233806,0.05296,96464.0,96430.0,0.06801597]
[1763137234136,0.20740218,96431.0,96430.0,0.06801597]
[1763137234264,0.20740218,96431.0,96430.0,0.00113597]
[1763137234471,0.20740218,96431.0,96430.0,0.00213597]
[1763137235385,0.24315218,96431.0,96430.0,0.01213597]
[1763137235792,0.20740218,96431.0,96430.0,0.00213597]
[1763137236000,0.20735917,96451.0,96450.0,0.01]
[1763137236205,0.20740218,96431.0,96430.0,0.00013597]
[1763137236451,0.20740218,96431.0,96430.0,0.00113597]
[1763137236831,0.20740218,96431.0,96430.0,0.00013597]
[1763137237262,0.20740218,96431.0,96430.0,0.01013597]
[1763137237938,0.20740218,96431.0,96430.0,0.00013597]
[1763137238149,0.25842247,96431.0,96430.0,0.01013597]
[1763137238355,0.34713247,96431.0,96430.0,0.00013597]
[1763137238524,0.25842247,96431.0,96430.0,0.01013597]
[1763137238727,0.25842247,96431.0,96430.0,0.00013597]
[1763137238939,0.06788,96431.0,96430.0,0.00129603]
[1763137239306,0.2074013,96432.0,96430.0,0.00129603]
[1763137239510,0.2074013,96432.0,96430.0,0.00013597]
[1763137239914,0.001,96431.0,96430.0,0.00013597]
[1763137240302,0.2074013,96432.0,96430.0,0.01013597]
[1763137240964,0.03575,96431.0,96430.0,0.01013597]
[1763137242238,0.2074013,96432.0,96430.0,0.01013597]
[1763137243451,0.001,96431.0,96430.0,0.01013597]
[1763137243651,0.20651447,96431.0,96430.0,0.01013597]
[1763137243896,0.20651447,96431.0,96430.0,0.00013597]
[1763137244103,0.20740108,96432.0,96430.0,0.00013597]
[1763137244309,0.20740108,96432.0,96430.0,0.01013597]
[1763137244628,0.20740103,96432.0,96431.0,0.00113307]
[1763137244831,0.323,96458.0,96440.0,0.01]
[1763137245035,0.323,96458.0,96430.0,0.00013597]
[1763137245036,0.2073967,96434.0,96430.0,0.00013597]
[1763137245237,0.20740218,96431.0,96430.0,0.00013597]
[1763137245434,0.24315218,96431.0,96430.0,0.01129603]
[1763137246343,0.24198657,96431.0,96430.0,0.00129603]
[1763137247338,0.24198657,96431.0,96370.0,0.2]
[1763137247339,0.36755239,96410.0,96370.0,0.36755239]
[1763137247543,0.02648,96394.0,96377.0,0.10479654]
[1763137247691,0.01037344,96400.0,96390.0,0.01]
[1763137247692,0.20748825,96391.0,96390.0,0.01]
[1763137247893,0.06788,96399.0,96391.0,0.02298]
[1763137248099,0.20748521,96393.0,96391.0,0.02298]
[1763137248294,0.20748521,96393.0,96390.0,0.01]
[1763137248538,0.20748825,96391.0,96390.0,0.01]
[1763137248715,0.01037344,96400.0,96381.0,0.02298]
[1763137248716,0.06788,96392.0,96381.0,0.02298]
[1763137248890,0.20750762,96382.0,96381.0,0.02298]
[1763137249297,0.207527,96373.0,96372.0,0.00045336]
[1763137249591,0.269757,96373.0,96372.0,0.00045336]
[1763137250244,0.301927,96373.0,96372.0,0.00045336]
[1763137250458,0.275447,96373.0,96372.0,0.00045336]
[1763137250703,0.311197,96373.0,96372.0,0.00045336]
[1763137251789,0.275447,96373.0,96372.0,0.00045336]
[1763137252746,0.312197,96373.0,96372.0,0.00045336]
[1763137253194,0.311197,96373.0,96372.0,0.00045336]
[1763137253677,0.311197,96373.0,96372.0,0.00201938]
[1763137253863,0.3873405,96373.0,96372.0,0.00201938]
[1763137254073,0.43275924,96373.0,96372.0,0.00201938]
[1763137254368,0.75575924,96373.0,96372.0,0.00201938]
[1763137255137,0.7123405,96373.0,96372.0,0.00201938]
[1763137255362,0.68583924,96373.0,96372.0,0.00201938]
[1763137255594,0.208527,96373.0,96372.0,0.00201938]
[1763137255801,0.277447,96373.0,96372.0,0.00201938]
[1763137256020,0.276447,96373.0,96372.0,0.00201938]
[1763137256235,0.278447,96373.0,96372.0,0.00201938]
[1763137256445,0.277447,96373.0,96372.0,0.00201938]
[1763137256669,0.275447,96373.0,96372.0,0.00201938]
[1763137256823,0.277447,96373.0,96372.0,0.00201938]
[1763137257254,0.06992,96373.0,96372.0,0.00201938]
[1763137257453,0.002,96373.0,96372.0,0.00201938]
[1763137257650,0.00055457,96373.0,96372.0,0.00201938]
[1763137258647,0.20751664,96378.0,96372.0,0.00201938]
[1763137259010,0.0944,96388.0,96372.0,0.00045336]
[1763137259453,0.20750682,96383.0,96372.0,0.00045336]
[1763137259574,0.20750854,96382.0,96372.0,0.00045336]
[1763137259768,0.06792,96388.0,96372.0,0.00045336]
[1763137260044,0.01037344,96400.0,96372.0,0.00045336]
[1763137260255,0.06792,96399.0,96390.0,0.01]
[1763137260457,0.20748825,96391.0,96390.0,0.01]
[1763137260649,0.06792,96399.0,96390.0,0.1598]
[1763137260827,0.01037344,96400.0,96373.0,0.12657654]
[1763137260828,0.01037344,96400.0,96381.0,0.02178]
[1763137261026,0.01037236,96410.0,96381.0,0.02178]